bitfinex-derivatives/quotes_BTCF0:USTF0_20210111
["timestamp","ask_amount","ask_price","bid_price","bid_amount"]
[1610402065922,0.08191,34063.0,34036.0,3.6572]
[1610402066524,0.07919,34063.0,34036.0,3.6572]
[1610402066727,3.8729,34077.0,34036.0,3.6572]
[1610402066929,0.08855,34072.0,34031.0,0.07782]
[1610402067127,0.08855,34072.0,34069.0,0.13632608]
[1610402067924,0.08855,34072.0,34046.0,4.9055]
[1610402068128,0.11377,34100.0,34046.0,4.9055]
[1610402068326,0.11377,34100.0,34047.0,0.0886]
[1610402069127,0.11377,34100.0,34084.0,0.13632608]
[1610402071030,0.13632608,34085.0,34084.0,0.13632608]
[1610402071430,0.07101,34088.0,34084.0,0.13632608]
[1610402074037,3.78161,34088.0,34061.0,0.09161]
[1610402074234,0.07101,34088.0,34030.0,2.25004367]
[1610402074433,3.3864,34075.0,34039.0,4.02]
[1610402074636,3.48269,34075.0,34039.0,4.02]
[1610402074836,0.0882,34074.0,34025.0,0.0892]
[1610402075036,4.8494,34064.0,34023.0,4.7511]
[1610402075235,4.96276,34064.0,34023.0,4.7511]
[1610402075837,0.13632608,34027.0,34023.0,4.88742608]
[1610402076036,0.13632608,34027.0,34023.0,0.13632608]
[1610402076236,0.13632608,34027.0,33997.0,2.25358113]
[1610402076536,0.13632608,34027.0,33994.0,4.3683]
[1610402077538,0.21947608,34027.0,33994.0,4.3683]
[1610402077836,0.13632608,34014.0,34000.0,0.13632608]
[1610402079736,0.13632608,34014.0,34006.0,0.13632608]
[1610402081742,0.13632608,34014.0,34013.0,0.13632608]
[1610402083844,0.08315,34027.0,34020.0,0.13632608]
[1610402084044,0.13632608,34031.0,34020.0,0.13632608]
[1610402084643,0.5433,34029.0,34020.0,0.13632608]
[1610402084848,0.5433,34029.0,33995.0,0.08446]
[1610402084849,0.5433,34029.0,34005.0,0.09713]
[1610402085049,0.13632608,34031.0,34005.0,0.09713]
[1610402085248,3.3549,34024.0,34005.0,0.09713]
[1610402085450,0.07508,34024.0,34005.0,0.09713]
[1610402085948,0.07508,34024.0,34014.0,0.13632608]
[1610402086350,0.07508,34024.0,34005.0,0.09713]
[1610402086550,4.7364,34031.0,34005.0,0.09713]
[1610402087751,4.7364,34031.0,34014.0,0.13632608]
[1610402088652,4.7364,34031.0,34005.0,0.09713]
[1610402089852,0.07238,34035.0,34028.0,0.13632608]
[1610402090054,0.07238,34035.0,34016.0,0.11359]
[1610402090252,3.5739,34048.0,34016.0,0.11359]
[1610402091954,0.088,34073.0,34032.0,0.13632608]
[1610402092156,3.3555,34063.0,34032.0,0.24619608]
[1610402092756,3.3555,34063.0,34032.0,0.86589608]
[1610402092957,0.2896,34071.0,34032.0,0.24619608]
[1610402093157,0.2896,34071.0,34034.0,4.3084]
[1610402093563,4.748,34080.0,34034.0,4.3084]
[1610402094059,0.288,34099.0,34060.0,0.13632608]
[1610402094060,0.13632608,34061.0,34060.0,0.13632608]
[1610402095160,0.10061,34062.0,34052.0,3.6082]
[1610402095659,0.10477,34069.0,34052.0,3.6082]
[1610402095861,0.10477,34069.0,34068.0,0.13632608]
[1610402096059,0.13632608,34071.0,34068.0,0.13632608]
[1610402096460,4.5486,34099.0,34068.0,0.13632608]
[1610402096860,4.2606,34099.0,34068.0,0.13632608]
[1610402097160,3.9666,34099.0,34068.0,0.13632608]
[1610402097963,0.13632608,34084.0,34083.0,0.13632608]
[1610402098162,0.2772,34113.0,34083.0,0.13632608]
[1610402098360,0.09911,34097.0,34083.0,0.13632608]
[1610402099560,0.09911,34097.0,34075.0,4.1279]
[1610402100061,0.09911,34097.0,34095.0,0.13632608]
[1610402100263,3.9055,34108.0,34095.0,0.13632608]
[1610402100461,3.9055,34108.0,34087.0,0.10963]
[1610402100761,4.0073,34108.0,34087.0,0.10963]
[1610402101864,4.0073,34108.0,34090.0,0.13632608]
[1610402103765,4.0073,34108.0,34087.0,0.10963]
[1610402103965,4.0073,34108.0,34092.0,0.13632608]
[1610402104165,4.0073,34108.0,34080.0,0.09087]
[1610402105167,4.0073,34108.0,34075.0,4.1279]
[1610402105366,4.0073,34108.0,34048.0,2.27950591]
[1610402105367,3.4817,34076.0,34048.0,2.27950591]
[1610402105580,0.0882,34107.0,34044.0,2.28105022]
[1610402105869,0.13632608,34045.0,34044.0,2.28105022]
[1610402106069,3.55852608,34045.0,34029.0,0.10778]
[1610402106469,0.2987,34044.0,34011.0,2.28340511]
[1610402106869,0.2987,34044.0,34001.0,2.28366843]
[1610402107069,0.0893,34043.0,34001.0,2.28366843]
[1610402107271,0.0893,34043.0,33998.0,2.28410568]
[1610402107773,3.4976,34022.0,33995.0,2.28410875]
[1610402107972,3.59338,34022.0,33998.0,0.13632608]
[1610402108174,0.0171,34006.0,33998.0,0.13632608]
[1610402108572,3.5614,34005.0,33998.0,0.13632608]
[1610402108871,3.5614,34005.0,33986.0,2.2838301]
[1610402109074,3.5614,34005.0,33981.0,2.28405416]
[1610402109475,3.5614,34005.0,33979.0,0.0891]
[1610402109975,0.13632608,34002.0,33995.0,0.13632608]
[1610402110476,0.13632608,34002.0,33975.0,2.28302416]
[1610402110679,4.3933,33988.0,33975.0,2.28302416]
[1610402110876,4.3933,33988.0,33971.0,2.28179297]
[1610402111278,4.3933,33988.0,33961.0,2.28236643]
[1610402111476,0.10227,33993.0,33961.0,2.28236643]
[1610402111677,0.10227,33993.0,33961.0,0.1064]
[1610402111976,4.89,33982.0,33969.0,0.13632608]
[1610402112177,0.08438,33985.0,33961.0,0.1064]
[1610402112377,4.7361,33972.0,33961.0,0.1064]
[1610402112677,4.7361,33972.0,33945.0,2.27700962]
[1610402112880,4.7361,33972.0,33942.0,4.0966]
[1610402113382,4.7361,33972.0,33943.0,0.10751]
[1610402113880,0.13632608,33971.0,33956.0,0.13632608]
[1610402114281,0.22742608,33971.0,33956.0,0.13632608]
[1610402115081,0.0911,33971.0,33943.0,0.10751]
[1610402115886,0.0911,33971.0,33963.0,0.13632608]
[1610402116484,0.13632608,33977.0,33963.0,0.13632608]
[1610402116784,0.09884,33978.0,33952.0,3.54613]
[1610402116984,0.09884,33978.0,33962.0,0.11238]
[1610402117184,0.08438,33985.0,33962.0,0.11238]
[1610402117385,4.5867,34017.0,33965.0,4.8089]
[1610402117985,0.13632608,34007.0,33965.0,4.8089]
[1610402118695,0.13632608,34007.0,33966.0,0.0891]
[1610402119986,0.13632608,34007.0,34004.0,0.13632608]
[1610402120785,4.7454,34040.0,33999.0,3.9165]
[1610402121087,0.0938,34007.0,33999.0,3.9165]
[1610402121285,0.0938,34007.0,33982.0,0.0782]
[1610402122087,0.0938,34007.0,33990.0,0.13632608]
[1610402122286,0.0938,34007.0,33976.0,3.3721]
[1610402122688,0.0938,34007.0,33976.0,3.4614]
[1610402122890,0.0938,34007.0,33976.0,3.3721]
[1610402123593,0.09686,34015.0,33976.0,3.3721]
[1610402123990,0.09686,34015.0,33999.0,0.13632608]
[1610402124391,0.09686,34015.0,33992.0,0.09933]
[1610402126094,0.13632608,33993.0,33992.0,0.09933]
[1610402126893,0.13632608,33993.0,33986.0,0.13632608]
[1610402127793,0.13632608,33993.0,33977.0,0.09085]
[1610402128094,0.13632608,33985.0,33977.0,0.09085]
[1610402129194,0.13632608,33985.0,33969.0,0.13632608]
[1610402130394,0.08371,34000.0,33968.0,3.7229]
[1610402130595,0.10091,33992.0,33968.0,3.7229]
[1610402132096,0.13632608,33980.0,33976.0,0.13632608]
[1610402132696,0.13632608,33980.0,33968.0,3.7229]
[1610402134095,0.13632608,33971.0,33967.0,0.13632608]
[1610402136300,0.13632608,33971.0,33955.0,4.7875]
[1610402137100,0.13632608,33971.0,33931.0,2.25580355]
[1610402137401,0.13632608,33971.0,33942.0,3.9881]
[1610402138000,0.13632608,33958.0,33950.0,0.13632608]
[1610402139602,0.13632608,33958.0,33942.0,3.9881]
[1610402140004,0.13632608,33958.0,33956.0,0.50548402]
[1610402140305,0.10196,33992.0,33956.0,0.61664402]
[1610402140704,0.10196,33992.0,33956.0,0.48031794]
[1610402141007,0.71676,33992.0,33956.0,0.48031794]
[1610402141411,0.71676,33992.0,33957.0,0.0877]
[1610402142110,0.71676,33992.0,33972.0,0.13632608]
[1610402142611,0.71676,33992.0,33972.0,0.24846608]
[1610402142812,0.10196,33992.0,33972.0,0.24846608]
[1610402143010,0.10521,33999.0,33972.0,4.32076608]
[1610402143611,0.0812,34006.0,33972.0,4.32076608]
[1610402143813,0.2783,34010.0,33972.0,4.32076608]
[1610402144214,0.13632608,33986.0,33979.0,0.13632608]
[1610402146114,0.13632608,33980.0,33979.0,0.13632608]
[1610402160534,3.7058,33999.0,33979.0,0.13632608]
[1610402160934,3.7058,33999.0,33979.0,0.21869608]
[1610402161934,0.09651,34006.0,33979.0,0.21869608]
[1610402161935,0.09651,34006.0,33979.0,0.08237]
[1610402162138,3.4274,33988.0,33979.0,0.08237]
[1610402162337,0.13632608,33980.0,33972.0,0.11214]
[1610402162536,0.13632608,33980.0,33956.0,0.48031794]
[1610402162739,3.6144,33977.0,33956.0,0.48031794]
[1610402164139,0.24336608,33980.0,33956.0,0.36915794]
[1610402164440,0.13632608,33957.0,33956.0,0.36915794]
[1610402164643,5.01412608,33957.0,33956.0,0.36915794]
[1610402165640,4.8778,33957.0,33956.0,0.31196553]
[1610402165843,4.96654,33957.0,33956.0,0.31196553]
[1610402166041,5.05574,33957.0,33956.0,0.21366553]
[1610402166341,5.19206608,33957.0,33956.0,6.553e-05]
[1610402167143,5.05574,33957.0,33956.0,6.553e-05]
[1610402167542,0.08874,33957.0,33956.0,6.553e-05]
[1610402168544,0.22506608,33957.0,33956.0,6.553e-05]
[1610402169648,0.08874,33957.0,33956.0,6.553e-05]
[1610402170249,4.94364,33957.0,33956.0,6.553e-05]
[1610402170448,5.07996608,33957.0,33956.0,6.553e-05]
[1610402171552,0.22506608,33957.0,33909.0,0.07695]
[1610402171753,4.6606,33911.0,33909.0,0.07695]
[1610402172051,4.6606,33911.0,33895.0,2.39407811]
[1610402172052,0.11302,33927.0,33895.0,0.1]
[1610402172255,4.317,33910.0,33895.0,0.1]
[1610402172453,0.13632608,33896.0,33895.0,0.1]
[1610402173353,0.07075,33896.0,33895.0,0.1]
[1610402173755,0.07282,33904.0,33895.0,0.1]
[1610402174153,0.07282,33904.0,33895.0,0.20322]
[1610402174453,0.2848,33931.0,33895.0,0.20322]
[1610402174652,0.2848,33931.0,33908.0,0.13632608]
[1610402175052,0.2848,33931.0,33908.0,0.08891]
[1610402176757,0.13632608,33909.0,33908.0,0.08891]
[1610402176957,0.13632608,33909.0,33895.0,0.20322]
[1610402178655,0.13632608,33896.0,33895.0,0.20322]
[1610402181657,0.10168,33915.0,33895.0,0.20322]
[1610402182157,0.088,33943.0,33895.0,0.20322]
[1610402182356,0.2823,33942.0,33898.0,4.5029]
[1610402182857,0.13632608,33922.0,33913.0,0.13632608]
[1610402183257,0.08732,33923.0,33898.0,4.5029]
[1610402184259,4.4693,33943.0,33899.0,0.0895]
[1610402184460,0.2749,33952.0,33909.0,4.2406]
[1610402184759,0.2749,33952.0,33909.0,4.34562]
[1610402185461,0.03,33954.0,33909.0,4.34562]
[1610402186160,0.03,33954.0,33909.0,4.43382]
[1610402186560,0.03,33954.0,33909.0,4.34562]
[1610402186960,4.4844,33938.0,33909.0,0.10502]
[1610402187362,4.55282,33938.0,33895.0,0.20322]
[1610402187962,0.13632608,33896.0,33895.0,0.20322]
[1610402188363,0.07076,33923.0,33895.0,0.20322]
[1610402189963,3.93956,33923.0,33903.0,0.13632608]
[1610402190565,0.07076,33923.0,33903.0,0.13632608]
[1610402191971,0.07076,33923.0,33911.0,0.13632608]
[1610402193171,0.06842,33938.0,33911.0,0.13632608]
[1610402193373,0.06842,33938.0,33917.0,3.8889]
[1610402193573,0.2921,33945.0,33917.0,3.8889]
[1610402193774,0.297,33958.0,33917.0,3.97686]
[1610402193973,0.13632608,33942.0,33941.0,0.13632608]
[1610402196875,0.09681,33945.0,33941.0,0.13632608]
[1610402197075,0.0864,33952.0,33941.0,0.13632608]
[1610402197277,4.4675,33983.0,33941.0,0.13632608]
[1610402197476,0.01140349,33985.0,33939.0,0.09238]
[1610402197678,0.2903,33987.0,33952.0,4.0406]
[1610402197879,0.08807,33971.0,33952.0,4.0406]
[1610402198180,0.13632608,33964.0,33953.0,0.13632608]
[1610402198478,0.08807,33971.0,33953.0,0.13632608]
[1610402200176,0.00335272,33997.0,33953.0,0.13632608]
[1610402200376,0.2792,33996.0,33953.0,0.13632608]
[1610402200577,0.36651,33996.0,33966.0,4.8039]
[1610402200778,0.36651,33996.0,33957.0,0.10978]
[1610402200976,0.36651,33996.0,33962.0,4.0942]
[1610402201176,0.36651,33996.0,33957.0,0.10978]
[1610402201476,0.36651,33996.0,33970.0,3.6358]
[1610402201876,0.08731,33996.0,33970.0,3.6358]
[1610402202078,0.08731,33996.0,33973.0,0.13632608]
[1610402203282,0.08731,33996.0,33990.0,3.3472]
[1610402203983,0.08731,33996.0,33995.0,0.13632608]
[1610402204483,0.01168456,34026.0,33995.0,0.13632608]
[1610402204782,0.01168456,34026.0,34008.0,4.1641]
[1610402204982,0.0163905,34027.0,34008.0,4.1641]
[1610402204983,0.00340831,34027.0,34008.0,4.1641]
[1610402205383,0.2877,34029.0,34008.0,4.1641]
[1610402205982,0.01170758,34031.0,34028.0,3.3008]
[1610402206182,0.01170758,34031.0,34016.0,0.11086]
[1610402206383,0.01170758,34031.0,34030.0,4.7988]
[1610402206683,0.0034334,34040.0,34030.0,4.93333939]
[1610402206886,0.00345841,34061.0,34030.0,4.93333939]
[1610402207283,0.01663329,34063.0,34030.0,4.93333939]
[1610402207484,0.29967282,34070.0,34030.0,4.93333939]
[1610402207687,0.2962,34070.0,34030.0,4.93333939]
[1610402208685,0.2962,34070.0,34030.0,4.79701331]
[1610402209288,0.11179,34062.0,34030.0,4.79701331]
[1610402210289,0.2962,34070.0,34030.0,4.79701331]
[1610402211091,0.2962,34070.0,34069.0,0.13632608]
[1610402211491,0.2962,34070.0,34053.0,0.08988]
[1610402211792,0.2962,34070.0,34057.0,0.5813]
[1610402213094,0.2962,34070.0,34069.0,0.13632608]
[1610402217901,0.2962,34070.0,34060.0,0.09346]
[1610402218103,0.2962,34070.0,34053.0,0.08988]
[1610402218304,0.38076,34070.0,34050.0,4.0131]
[1610402219607,0.2962,34070.0,34069.0,0.13632608]
[1610402223009,0.2962,34070.0,34066.0,4.7854]
[1610402223309,0.39874,34070.0,34066.0,4.7854]
[1610402223515,0.39874,34070.0,34069.0,0.13632608]
[1610402224610,0.2962,34070.0,34069.0,0.13632608]
[1610402225812,0.2962,34070.0,34068.0,0.11152]
[1610402227615,0.2962,34070.0,34069.0,0.13632608]
[1610402229818,0.1962,34070.0,34069.0,0.13632608]
[1610402230318,0.1962,34070.0,34066.0,4.7854]
[1610402231521,0.1962,34070.0,34069.0,0.13632608]
[1610402231921,0.1962,34070.0,34066.0,4.7854]
[1610402233524,0.1962,34070.0,34069.0,0.13632608]
[1610402235525,0.0725,34070.0,34069.0,0.13632608]
[1610402235926,0.003341,34147.0,34065.0,0.11088]
[1610402236226,0.003341,34147.0,34099.0,3.3495]
[1610402236425,0.0114682,34152.0,34099.0,3.3495]
[1610402236725,0.00334626,34155.0,34099.0,3.3495]
[1610402237227,0.2984,34156.0,34099.0,3.3495]
[1610402237429,0.39619,34156.0,34086.0,0.0847]
[1610402237727,4.1943,34144.0,34086.0,0.0847]
[1610402238026,4.27332,34144.0,34090.0,4.9187]
[1610402238626,4.27332,34144.0,34119.0,0.13632608]
[1610402239431,4.27332,34144.0,34086.0,0.0847]
[1610402239432,0.07902,34144.0,34086.0,0.0847]
[1610402239630,4.6037,34136.0,34086.0,0.0847]
[1610402239828,4.6982,34136.0,34080.0,4.2086]
[1610402240728,0.0945,34136.0,34120.0,0.13632608]
[1610402242431,0.0945,34136.0,34121.0,0.4976]
[1610402242633,0.0945,34136.0,34092.0,0.09477]
[1610402242834,0.0945,34136.0,34103.0,0.09152]
[1610402243133,0.0945,34136.0,34135.0,3.84212608]
[1610402243534,0.07902,34144.0,34135.0,3.84212608]
[1610402243734,0.07902,34144.0,34135.0,3.7058]
[1610402243934,0.09779,34156.0,34135.0,3.7058]
[1610402244334,4.1081,34183.0,34135.0,3.7058]
[1610402244536,0.00339639,34194.0,34130.0,0.08076]
[1610402244738,0.00339639,34194.0,34145.0,4.1451]
[1610402245237,0.01165657,34200.0,34145.0,4.1451]
[1610402245436,0.5314,34199.0,34145.0,4.1451]
[1610402245737,0.2994,34198.0,34145.0,4.1451]
[1610402246236,0.2994,34198.0,34145.0,4.1251]
[1610402246437,0.00338852,34193.0,34145.0,4.1251]
[1610402246937,0.01161451,34194.0,34145.0,4.1251]
[1610402247137,0.00339144,34200.0,34145.0,4.1251]
[1610402247638,0.0116275,34201.0,34145.0,4.1251]
[1610402248038,0.298,34200.0,34145.0,4.1251]
[1610402249138,0.13632608,34187.0,34150.0,0.13632608]
[1610402249538,0.21751608,34187.0,34150.0,0.13632608]
[1610402251039,0.08119,34187.0,34145.0,4.1251]
[1610402251439,0.08119,34187.0,34173.0,0.13632608]
[1610402251941,0.08119,34187.0,34145.0,4.1251]
[1610402253545,0.08119,34187.0,34169.0,0.13632608]
[1610402254445,0.53482064,34199.0,34145.0,4.1251]
[1610402254645,0.10962,34187.0,34145.0,4.1251]
[1610402255547,0.13632608,34177.0,34175.0,0.13632608]
[1610402255948,0.21982608,34177.0,34175.0,0.13632608]
[1610402256148,0.21982608,34177.0,34145.0,4.1251]
[1610402257651,0.21982608,34177.0,34160.0,0.13632608]
[1610402257851,0.21982608,34177.0,34145.0,4.1251]
[1610402257852,0.0835,34177.0,34145.0,4.1251]
[1610402259050,0.0635,34177.0,34145.0,4.1251]
[1610402259552,0.0535,34177.0,34166.0,0.13632608]
[1610402259755,0.0535,34177.0,34145.0,4.1251]
[1610402261255,0.00351475,34183.0,34145.0,4.1251]
[1610402261456,0.00352523,34179.0,34177.0,0.01]
[1610402261656,0.13632608,34178.0,34177.0,0.01]
[1610402261856,0.13632608,34178.0,34157.0,0.13632608]
[1610402262256,0.13632608,34178.0,34157.0,0.65942608]
[1610402262457,0.22196027,34178.0,34157.0,0.65942608]
[1610402262858,0.21840608,34178.0,34157.0,0.65942608]
[1610402263259,0.21840608,34178.0,34177.0,0.01]
[1610402263958,0.21840608,34178.0,34166.0,0.13632608]
[1610402264459,0.21840608,34178.0,34157.0,0.5231]
[1610402265664,0.21840608,34178.0,34160.0,0.13632608]
[1610402265962,0.00353766,34177.0,34160.0,0.13632608]
[1610402266163,0.21840608,34178.0,34157.0,0.5231]
[1610402266661,0.00353265,34176.0,34157.0,0.5231]
[1610402266861,0.01212283,34175.0,34157.0,0.5231]
[1610402267262,0.00353431,34173.0,34157.0,0.5231]
[1610402267664,0.00353879,34176.0,34172.0,0.13632608]
[1610402267862,0.00353879,34176.0,34172.0,4.2634]
[1610402268166,0.08562416,34178.0,34139.0,0.08406]
[1610402268363,0.08208,34178.0,34157.0,4.289]
[1610402268563,0.01215996,34179.0,34157.0,4.289]
[1610402268863,0.00355169,34175.0,34157.0,4.289]
[1610402269063,0.10210169,34175.0,34157.0,4.289]
[1610402269264,0.09855,34175.0,34104.0,0.2933]
[1610402269464,4.1432,34172.0,34133.0,3.8956]
[1610402269664,0.00354483,34169.0,34133.0,3.8956]
[1610402269865,0.00353878,34166.0,34133.0,3.8956]
[1610402270265,0.00353425,34163.0,34133.0,3.8956]
[1610402270669,0.50506139,34165.0,34133.0,3.8956]
[1610402270670,0.01211503,34156.0,34133.0,3.8956]
[1610402271067,0.08806503,34156.0,34133.0,3.8956]
[1610402271268,0.00353355,34155.0,34133.0,3.8956]
[1610402271567,0.00353355,34155.0,34136.0,0.13632608]
[1610402271968,0.00353229,34153.0,34136.0,0.13632608]
[1610402272370,0.01209965,34153.0,34136.0,0.13632608]
[1610402272771,0.00353229,34153.0,34136.0,0.13632608]
[1610402273171,0.01206667,34154.0,34136.0,0.13632608]
[1610402273570,0.13632608,34137.0,34136.0,0.13632608]
[1610402273770,0.21440608,34137.0,34136.0,0.13632608]
[1610402274170,0.21440608,34137.0,34073.0,0.2913]
[1610402274372,0.21440608,34137.0,34116.0,4.1766]
[1610402275572,0.07808,34137.0,34136.0,0.13632608]
[1610402278772,0.13632608,34139.0,34136.0,0.13632608]
[1610402282476,0.13632608,34139.0,34126.0,4.1014]
[1610402282877,0.20838608,34139.0,34126.0,4.1014]
[1610402283680,0.07206,34139.0,34131.0,0.13632608]
[1610402285381,0.07206,34139.0,34072.0,0.1592]
[1610402285580,0.07206,34139.0,34100.0,4.5524]
[1610402285781,0.07206,34139.0,34117.0,0.13632608]
[1610402286187,0.07556806,34139.0,34117.0,0.13632608]
[1610402286582,0.01202807,34138.0,34100.0,4.5524]
[1610402286982,0.00350564,34133.0,34100.0,4.5524]
[1610402287482,0.00350282,34132.0,34100.0,4.5524]
[1610402287681,0.00350282,34132.0,34111.0,0.13632608]
[1610402287882,0.01201538,34130.0,34111.0,0.13632608]
[1610402288282,0.01200774,34129.0,34111.0,0.13632608]
[1610402288681,0.00350198,34126.0,34111.0,0.13632608]
[1610402288883,0.00350198,34126.0,34100.0,4.5524]
[1610402289082,0.00350329,34125.0,34100.0,4.5524]
[1610402289381,0.01201189,34126.0,34100.0,4.5524]
[1610402289581,0.09927,34125.0,34100.0,4.5524]
[1610402289784,0.00350516,34123.0,34103.0,0.13632608]
[1610402290584,0.01200973,34122.0,34103.0,0.13632608]
[1610402290783,0.01200973,34122.0,34092.0,4.2515]
[1610402291184,4.3221,34119.0,34065.0,4.65]
[1610402291385,0.2803,34118.0,34065.0,4.65]
[1610402291586,0.01196771,34116.0,34065.0,4.65]
[1610402291785,0.13632608,34084.0,34083.0,0.13632608]
[1610402291991,0.22391608,34084.0,34083.0,0.13632608]
[1610402292686,0.22391608,34084.0,34055.0,0.0878]
[1610402292888,0.22391608,34084.0,34059.0,4.438]
[1610402293687,0.08759,34084.0,34079.0,0.13632608]
[1610402295690,0.22391608,34084.0,34083.0,0.13632608]
[1610402297692,0.08759,34084.0,34060.0,0.0888]
[1610402297894,0.08759,34084.0,34074.0,3.7358]
[1610402298093,4.85339855,34106.0,34074.0,3.7358]
[1610402298294,4.8415,34106.0,34088.0,0.13632608]
[1610402298494,0.00346899,34107.0,34088.0,0.13632608]
[1610402298695,0.0118924,34108.0,34088.0,4.13692608]
[1610402299296,0.00347109,34111.0,34088.0,4.13692608]
[1610402299696,0.00347381,34115.0,34088.0,4.13692608]
[1610402299895,0.10651639,34116.0,34088.0,4.13692608]
[1610402299896,0.09808,34116.0,34088.0,4.13692608]
[1610402300195,0.09808,34116.0,34088.0,4.0006]
[1610402300496,0.01193929,34126.0,34088.0,4.0881]
[1610402300796,0.09927,34125.0,34116.0,0.13632608]
[1610402300996,0.01194713,34128.0,34116.0,0.13632608]
[1610402301197,0.0034878,34130.0,34116.0,0.13632608]
[1610402301902,0.2801,34131.0,34116.0,0.13632608]
[1610402302697,0.41642608,34131.0,34130.0,0.13632608]
[1610402305703,0.41642608,34131.0,34110.0,3.5185]
[1610402306202,0.41642608,34131.0,34110.0,3.6073]
[1610402306806,0.2801,34131.0,34114.0,0.13632608]
[1610402307305,0.2801,34131.0,34110.0,3.5185]
[1610402308905,0.2801,34131.0,34123.0,0.13632608]
[1610402310206,0.2801,34131.0,34110.0,3.5185]
[1610402310807,0.2801,34131.0,34115.0,0.13632608]
[1610402312709,0.2801,34131.0,34110.0,3.5185]
[1610402312710,0.2801,34131.0,34130.0,0.13632608]
[1610402313609,0.2801,34131.0,34110.0,3.6076]
[1610402314509,0.08909,34132.0,34110.0,3.6076]
[1610402314708,0.00353767,34138.0,34131.0,0.13632608]
[1610402315008,0.00353767,34138.0,34110.0,3.6076]
[1610402315208,0.01212569,34139.0,34110.0,3.6076]
[1610402315712,0.00353421,34139.0,34110.0,3.6076]
[1610402316012,0.00352337,34140.0,34110.0,3.6076]
[1610402316511,0.00351665,34141.0,34110.0,3.6076]
[1610402316713,0.00351665,34141.0,34136.0,0.13632608]
[1610402317013,0.00351435,34140.0,34136.0,0.13632608]
[1610402317413,0.09002435,34140.0,34136.0,0.13632608]
[1610402317913,0.08651,34140.0,34136.0,0.13632608]
[1610402318212,0.08651,34140.0,34129.0,3.5154]
[1610402318714,0.08651,34140.0,34138.0,0.13632608]
[1610402320115,0.08651,34140.0,34129.0,3.5154]
[1610402320819,0.08651,34140.0,34130.0,0.13632608]
[1610402322521,0.00352755,34139.0,34130.0,0.13632608]
[1610402322721,0.00352755,34139.0,34129.0,3.5154]
[1610402322722,0.13632608,34130.0,34129.0,3.5154]
[1610402322921,0.13632608,34130.0,34119.0,0.13632608]
[1610402323120,0.20675608,34130.0,34119.0,0.13632608]
[1610402324824,0.07043,34130.0,34127.0,0.13632608]
[1610402328126,0.14851024,34134.0,34127.0,0.13632608]
[1610402328526,0.16560336,34134.0,34127.0,0.13632608]
[1610402329529,0.0035536,34131.0,34127.0,0.13632608]
[1610402330029,0.07796,34131.0,34127.0,0.13632608]
[1610402330228,0.07796,34131.0,34124.0,3.4866]
[1610402330432,0.09015663,34131.0,34080.0,2.28994225]
[1610402330628,4.5844,34130.0,34096.0,3.8083]
[1610402330828,0.13632608,34111.0,34103.0,0.13632608]
[1610402331129,0.24999608,34111.0,34103.0,0.13632608]
[1610402331329,0.11367,34111.0,34096.0,3.8083]
[1610402332830,0.11367,34111.0,34100.0,0.13632608]
[1610402333731,0.11367,34111.0,34086.0,0.0881]
[1610402333931,0.1257999,34111.0,34080.0,4.8379]
[1610402334232,0.00353875,34110.0,34080.0,4.8379]
[1610402334733,0.00353906,34108.0,34080.0,4.8379]
[1610402335035,0.01214376,34108.0,34093.0,0.13632608]
[1610402335433,0.00354202,34106.0,34093.0,0.13632608]
[1610402335833,0.0121488,34106.0,34093.0,0.13632608]
[1610402336232,0.00354535,34105.0,34093.0,0.13632608]
[1610402336934,0.13632608,34094.0,34080.0,4.8379]
[1610402337134,0.24866608,34094.0,34069.0,0.0888]
[1610402337334,4.4099,34092.0,34066.0,0.06881]
[1610402337537,4.459,34083.0,34049.0,2.29012455]
[1610402337836,4.53395,34083.0,34053.0,0.10004]
[1610402338636,0.07495,34083.0,34053.0,0.10004]
[1610402338840,3.6936,34068.0,34037.0,4.2886]
[1610402339037,0.13632608,34054.0,34026.0,2.29040347]
[1610402339239,3.9326,34052.0,34026.0,2.29040347]
[1610402339539,3.9326,34052.0,34020.0,2.28829048]
[1610402339939,3.9326,34052.0,34018.0,3.3928]
[1610402340538,0.22437608,34054.0,34011.0,2.28885287]
[1610402340740,4.5892,34042.0,34006.0,2.289187]
[1610402340940,0.13632608,34007.0,34006.0,2.42551308]
[1610402341141,0.10864,34021.0,34001.0,0.08535]
[1610402341541,0.08864,34021.0,34001.0,0.08535]
[1610402341740,0.08864,34021.0,33995.0,2.28129026]
[1610402341942,0.5343,34020.0,33994.0,0.08025]
[1610402342346,0.08864,34021.0,33994.0,0.08025]
[1610402342543,3.8632,34015.0,33994.0,0.08025]
[1610402343041,0.13632608,33995.0,33987.0,0.07776]
[1610402343442,0.06967,34004.0,33987.0,0.07776]
[1610402343644,0.06967,34004.0,33980.0,4.7389]
[1610402344445,0.06967,34004.0,33976.0,0.09335]
[1610402344847,4.4021,34002.0,33976.0,0.09335]
[1610402345046,0.13632608,33986.0,33976.0,0.09335]
[1610402347053,0.13632608,33977.0,33976.0,0.09335]
[1610402347651,4.587,33991.0,33976.0,0.09335]
[1610402348452,4.587,33991.0,33976.0,0.66762979]
[1610402348753,0.10835,33997.0,33976.0,0.66762979]
[1610402349052,0.10835,33997.0,33978.0,3.5864]
[1610402349252,0.10835,33997.0,33986.0,0.13632608]
[1610402349553,0.10835,33997.0,33978.0,3.5864]
[1610402350552,0.06967,34004.0,33978.0,3.5864]
[1610402350952,0.2918,34018.0,33978.0,3.5864]
[1610402351154,0.13632608,33992.0,33981.0,0.13632608]
[1610402352456,0.09916,34001.0,33981.0,0.13632608]
[1610402352859,0.09916,34001.0,33978.0,3.5864]
[1610402353256,0.13632608,33991.0,33978.0,3.5864]
[1610402354859,0.13632608,33991.0,33976.0,0.66762979]
[1610402355259,0.13632608,33977.0,33976.0,0.66762979]
[1610402358864,0.81882608,33977.0,33976.0,0.66762979]
[1610402360669,0.81882608,33977.0,33976.0,0.57427979]
[1610402360968,0.6825,33977.0,33976.0,0.57427979]
[1610402361368,0.81882608,33977.0,33976.0,0.57427979]
[1610402362071,0.13632608,33977.0,33976.0,0.57427979]
[1610402363069,0.13632608,33977.0,33976.0,0.56427979]